bitfinex-derivatives/quotes_SOLF0:USTF0_20250221
["timestamp","ask_amount","ask_price","bid_price","bid_amount"]
[1740098812168,0.04150708,174.72,174.68,0.03672336]
[1740098812772,0.04150708,174.72,174.71,5.7219]
[1740098818383,0.04150708,174.72,174.7,5.7221]
[1740098819473,0.04150708,174.72,174.71,5.7219]
[1740098820583,0.04150708,174.72,174.68,0.03672336]
[1740098821183,0.04150708,174.72,174.71,5.7219]
[1740098824982,10.52733054,174.83,174.79,5.7192]
[1740098825186,15.96006919,174.84,174.79,5.7192]
[1740098825386,21.67776919,174.84,174.79,5.7192]
[1740098825588,21.67776919,174.84,174.73,15.96006919]
[1740098825883,21.67776919,174.84,174.8,5.7188]
[1740098826089,0.03682375,174.8,174.77,0.03728815]
[1740098826288,15.96006919,174.84,174.77,0.03728815]
[1740098826482,0.0398473,174.8,174.77,0.03728815]
[1740098827486,0.0398473,174.8,174.79,5.7193]
[1740098828986,5.7167,174.87,174.77,0.03728815]
[1740098829186,5.7169,174.87,174.77,0.03728815]
[1740098829386,15.96006919,174.88,174.77,0.03728815]
[1740098829690,5.717,174.86,174.8,5.7187]
[1740098829887,15.96006919,174.88,174.76,15.96006919]
[1740098830389,0.03705555,174.84,174.8,0.03933586]
[1740098831096,0.03705555,174.84,174.82,5.718]
[1740098831287,0.03705555,174.84,174.8,0.03933586]
[1740098831793,0.03705555,174.84,174.81,5.7185]
[1740098832892,0.03705555,174.84,174.8,0.03933586]
[1740098833688,0.03705555,174.84,174.8,5.75803586]
[1740098834089,0.03705555,174.84,174.8,0.03933586]
[1740098835395,0.03705555,174.84,174.81,5.7186]
[1740098836594,0.03705555,174.84,174.81,5.7184]
[1740098839099,0.03705555,174.84,174.8,10.2168273]
[1740098839300,5.718,174.83,174.8,5.75823586]
[1740098839690,15.93234699,174.84,174.8,5.75823586]
[1740098839893,15.93234699,174.84,174.8,0.03933586]
[1740098840093,15.93234699,174.84,174.8,5.75813586]
[1740098840291,15.93244699,174.84,174.8,0.03933586]
[1740098840596,10.21454699,174.84,174.81,5.7186]
[1740098840993,0.03705555,174.84,174.8,10.2168273]
[1740098841198,0.03705555,174.84,174.82,5.7181]
[1740098841400,0.03705555,174.84,174.8,10.2168273]
[1740098841795,0.03705555,174.84,174.81,5.7183]
[1740098841995,0.03705555,174.84,174.8,10.2168273]
[1740098842195,0.03705555,174.84,174.81,5.7184]
[1740098842396,0.03705555,174.84,174.8,10.2168273]
[1740098842900,15.93244699,174.84,174.8,0.03933586]
[1740098843890,0.03705555,174.84,174.8,10.2168273]
[1740098844500,0.03705555,174.84,174.82,5.7181]
[1740098845303,0.03705555,174.84,174.83,5.718]
[1740098848109,0.03705555,174.84,174.82,5.7182]
[1740098849211,5.75475555,174.84,174.82,5.7182]
[1740098849803,0.03705555,174.84,174.83,5.718]
[1740098855711,0.03705555,174.84,174.8,10.2168273]
[1740098856014,0.03705555,174.84,174.82,5.7181]
[1740098856517,0.03705555,174.84,174.81,5.7185]
[1740098856717,10.21454699,174.84,174.8,0.03933586]
[1740098856917,5.7182,174.83,174.8,0.03933586]
[1740098857517,5.7182,174.83,174.81,5.7186]
[1740098857711,10.21454699,174.84,174.8,0.03933586]
[1740098857918,5.7186,174.81,174.8,0.03933586]
[1740098860419,5.7201,174.77,174.72,15.41479144]
[1740098860715,10.17749144,174.74,174.66,31.82109996]
[1740098860914,10.17749144,174.74,174.68,10.17749144]
[1740098861218,10.17749144,174.76,174.68,10.17749144]
[1740098861410,10.17749144,174.76,174.7,10.17749144]
[1740098861614,0.03760824,174.74,174.7,10.21879453]
[1740098863018,0.03760824,174.74,174.71,5.7217]
[1740098863520,10.17749144,174.72,174.7,0.04130309]
[1740098864117,15.89909144,174.72,174.7,0.04130309]
[1740098864916,10.17749144,174.72,174.7,0.04130309]
[1740098865219,10.17749144,174.72,174.7,5.76330309]
[1740098866123,10.17749144,174.72,174.71,5.7219]
[1740098866424,10.21509968,174.74,174.7,0.04130309]
[1740098866820,10.21509968,174.74,174.72,5.7213]
[1740098867723,10.21509968,174.74,174.7,0.04130309]
[1740098867923,10.17749144,174.72,174.7,0.04130309]
[1740098869126,0.03760824,174.74,174.7,0.04130309]
[1740098869625,0.03760824,174.74,174.73,5.7212]
[1740098870425,10.17749144,174.8,174.72,10.17749144]
[1740098870626,10.17749144,174.8,174.78,5.7196]
[1740098871323,10.17749144,174.8,174.77,5.7197]
[1740098871724,10.17749144,174.78,174.77,5.75930227]
[1740098871925,10.17749144,174.78,174.77,0.03960227]
[1740098872726,0.03736571,174.8,174.77,0.03960227]
[1740098872925,5.7196,174.78,174.77,0.03960227]
[1740098873130,21.6358921,174.78,174.77,0.03960227]
[1740098874023,5.7212,174.74,174.66,15.9162921]
[1740098874223,15.9162921,174.78,174.63,3.54]
[1740098874224,15.9162921,174.75,174.63,19.4562921]
[1740098874418,15.9162921,174.75,174.63,17.6666921]
[1740098874618,5.7218,174.72,174.63,19.4562921]
[1740098875229,0.03850665,174.69,174.66,0.04127779]
[1740098875728,0.03850665,174.69,174.67,5.723]
[1740098875931,0.03850665,174.69,174.66,0.04127779]
[1740098877228,0.03850665,174.69,174.67,5.7231]
[1740098877528,0.03850665,174.69,174.66,0.04127779]
[1740098877831,5.76110665,174.69,174.66,0.04127779]
[1740098878130,0.03850665,174.69,174.66,0.04127779]
[1740098878530,0.03850665,174.69,174.66,5.76477779]
[1740098879728,0.03850665,174.69,174.66,0.04127779]
[1740098880526,0.03850665,174.69,174.67,5.723]
[1740098881228,0.03850665,174.69,174.66,0.04127779]
[1740098881428,0.03850665,174.69,174.68,5.7229]
[1740098882136,0.03850665,174.69,174.67,5.7231]
[1740098882433,0.03850665,174.69,174.66,0.04127779]
[1740098883435,0.03850665,174.69,174.67,5.7229]
[1740098883737,0.03850665,174.69,174.66,0.04127779]
[1740098883928,0.03850665,174.69,174.68,5.7229]
[1740098886836,6.65e-06,174.69,174.68,5.7229]
[1740098888741,6.65e-06,174.69,174.67,1.767]
[1740098888939,6.65e-06,174.69,174.66,0.04127779]
[1740098889340,6.65e-06,174.69,174.68,5.7229]
[1740098889540,6.65e-06,174.69,174.66,0.04127779]
[1740098889932,5.72260665,174.69,174.66,0.04127779]
[1740098891042,6.65e-06,174.69,174.66,0.04127779]
[1740098892138,6.65e-06,174.69,174.66,5.76457779]
[1740098892638,5.72260665,174.69,174.66,0.04127779]
[1740098893741,5.7229,174.68,174.66,0.04127779]
[1740098894045,6.65e-06,174.69,174.66,0.04127779]
[1740098894443,15.91629875,174.69,174.66,0.04127779]
[1740098894641,5.7232,174.67,174.66,0.04127779]
[1740098896345,31.83259085,174.69,174.56,0.46870195]
[1740098896637,5.725,174.62,174.58,5.726]
[1740098897548,5.76608471,174.62,174.58,5.76290197]
[1740098898151,0.04108471,174.62,174.59,5.7258]
[1740098898849,0.04108471,174.62,174.58,0.03690197]
[1740098898850,15.95737681,174.62,174.58,0.03690197]
[1740098899450,5.7258,174.6,174.58,0.03690197]
[1740098899854,5.7258,174.59,174.58,0.03690197]
[1740098901051,21.6420921,174.59,174.58,0.03690197]
[1740098901453,15.9162921,174.59,174.5,1.7203]
[1740098902157,21.6421921,174.59,174.55,5.7269]
[1740098902459,15.9162921,174.59,174.5,1.7203]
[1740098902656,15.9582998,174.59,174.56,5.7266]
[1740098903553,21.6841998,174.59,174.55,5.77030109]
[1740098904157,21.6841998,174.59,174.56,5.7268]
[1740098905061,15.9582998,174.59,174.57,5.7263]
[1740098905256,15.9582998,174.59,174.55,0.04330109]
[1740098906559,10.21179016,174.56,174.55,5.77040109]
[1740098911565,15.93859016,174.56,174.55,0.04330109]
[1740098914066,10.21179016,174.56,174.55,0.04330109]
[1740098914767,15.93859016,174.56,174.55,0.04330109]
[1740098917071,10.21179016,174.56,174.55,5.77040109]
[1740098917367,10.21179016,174.56,174.55,0.04330109]
[1740098918572,15.93859016,174.56,174.55,0.04330109]
[1740098920680,10.21179016,174.56,174.55,0.04330109]
[1740098922278,10.21179016,174.56,174.55,5.77040109]
[1740098922479,10.21179016,174.58,174.55,0.04330109]
[1740098923280,10.21179016,174.58,174.56,5.7266]
[1740098924380,15.93809016,174.58,174.56,5.7266]
[1740098924578,10.21179016,174.58,174.55,0.04330109]
[1740098924783,10.21179016,174.58,174.56,5.7268]
[1740098926679,7.7e-06,174.59,174.58,5.7261]
[1740098927081,10.21179016,174.69,174.58,3.5105]
[1740098927379,10.21179016,174.69,174.66,5.7235]
[1740098927680,10.21179016,174.69,174.62,10.21179016]
[1740098927878,10.21179016,174.69,174.65,5.7236]
[1740098928279,10.21179016,174.67,174.65,0.04207135]
[1740098929783,10.24843676,174.69,174.65,0.04207135]
[1740098930183,10.24843676,174.69,174.67,5.723]
[1740098930684,10.24843676,174.69,174.65,0.04207135]
[1740098931891,10.24843676,174.69,174.66,5.7235]
[1740098932186,10.24843676,174.69,174.65,0.04207135]
[1740098932187,10.21179016,174.67,174.65,0.04207135]
[1740098932683,15.93509016,174.67,174.65,0.04207135]
[1740098934087,10.21179016,174.67,174.65,0.04207135]
[1740098934288,10.21179016,174.67,174.65,5.76587135]
[1740098934587,21.6617694,174.68,174.65,5.76587135]
[1740098934787,15.9386694,174.68,174.65,0.04207135]
[1740098934979,0.0366466,174.69,174.65,0.04207135]
[1740098936892,0.0366466,174.69,174.66,5.7235]
[1740098937390,5.7594466,174.69,174.66,5.7235]
[1740098937796,0.0366466,174.69,174.66,5.7235]
[1740098938190,5.7235,174.66,174.65,0.04207135]
[1740098940090,0.0366466,174.69,174.65,0.04207135]
[1740098940487,15.9386694,174.68,174.65,0.04207135]
[1740098940790,5.7235,174.66,174.65,0.04207135]
[1740098941694,5.7235,174.66,174.58,1.7768]
[1740098941695,5.7253,174.61,174.56,1.7109]
[1740098942096,15.9386694,174.64,174.59,5.7256]
[1740098942294,15.9386694,174.64,174.56,1.7109]
[1740098942691,15.9386694,174.64,174.53,1.7473]
[1740098942890,15.9386694,174.61,174.58,0.03898419]
[1740098943297,5.7258,174.59,174.58,0.03898419]
[1740098943492,15.9386694,174.61,174.58,0.03898419]
[1740098943692,0.04105758,174.62,174.58,0.03898419]
[1740098943889,0.04105758,174.62,174.61,5.7252]
[1740098944386,5.76605758,174.62,174.59,5.7255]
[1740098944586,0.04105758,174.62,174.58,0.03898419]
[1740098944991,5.7258,174.59,174.58,0.03898419]
[1740098945191,0.04105758,174.62,174.58,0.03898419]
[1740098945495,5.7258,174.59,174.58,0.03898419]
[1740098946496,5.7258,174.59,174.58,8.419e-05]
[1740098946698,5.7275,174.54,174.51,5.7284]
[1740098947798,5.76829969,174.54,174.51,5.76729859]
[1740098947998,0.04079969,174.54,174.51,5.76729859]
[1740098948299,0.04079969,174.54,174.52,5.7281]
[1740098948497,0.04079969,174.54,174.51,0.03889859]
[1740098948897,0.04079969,174.54,174.52,5.7279]
[1740098950392,0.04079969,174.54,174.53,5.7278]
[1740098951192,0.04079969,174.54,174.51,0.03889859]
[1740098952099,0.04079969,174.54,174.53,5.7278]
[1740098957500,0.04079969,174.54,174.52,5.728]
[1740098957800,5.76849969,174.54,174.51,0.03889859]
[1740098958098,5.76849969,174.54,174.51,5.76719859]
[1740098958491,5.7278,174.53,174.51,5.76719859]
[1740098958698,0.04079969,174.54,174.51,5.76719859]
[1740098958902,0.04079969,174.54,174.51,0.03889859]
[1740098959901,15.9386694,174.53,174.51,0.03889859]
[1740098960303,5.7281,174.52,174.51,0.03889859]
[1740098964500,15.9386694,174.53,174.41,43.66219736]
[1740098964701,15.9386694,174.5,174.41,3.5212]
[1740098964898,15.9386694,174.5,174.41,1.7553]
[1740098965103,23.4986694,174.5,174.41,1.7553]
[1740098965405,23.4986694,174.5,174.4,1.6897]
[1740098965607,0.03999731,174.47,174.4,1.6897]
[1740098966606,0.03999731,174.47,174.46,5.7301]
[1740098969208,5.727,174.56,174.45,15.9386694]
[1740098970308,0.04026321,174.52,174.49,0.04379147]
[1740098970806,0.04026321,174.52,174.51,5.7284]
[1740098971704,0.04026321,174.52,174.49,0.04379147]
[1740098971903,0.04026321,174.52,174.5,5.7287]
[1740098972305,0.04026321,174.52,174.51,5.7284]
[1740098975606,0.04026321,174.52,174.49,0.04379147]
[1740098975811,0.04026321,174.52,174.5,5.7287]
[1740098976399,5.76836321,174.52,174.5,5.7287]
[1740098976604,0.04026321,174.52,174.49,0.04379147]
[1740098977103,5.7288,174.5,174.49,0.04379147]
[1740098986814,15.95091389,174.5,174.49,0.04379147]
[1740098989417,10.22211389,174.47,174.39,10.22211389]
[1740098990514,0.03903841,174.45,174.41,10.22211389]
[1740098991109,0.03903841,174.45,174.44,5.7307]
[1740098997131,15.94961389,174.54,174.43,10.22211389]
[1740098997321,15.94961389,174.54,174.48,10.22211389]
[1740098997723,15.94961389,174.54,174.52,5.7281]
[1740098998119,15.94961389,174.54,174.46,10.22211389]
[1740098998324,10.22211389,174.52,174.5,5.7285]
[1740098998624,5.7278,174.53,174.5,5.7285]
[1740098999016,15.96392185,174.52,174.48,0.04264956]
[1740098999221,21.69302185,174.49,174.48,0.04264956]
[1740098999420,15.96392185,174.49,174.42,1.7685]
[1740098999826,5.7304,174.46,174.37,47.78502181]
[1740099000026,5.7304,174.46,174.37,49.57902181]
[1740099000526,5.7295,174.48,174.37,49.57902181]
[1740099000726,0.03993924,174.43,174.37,49.57902181]
[1740099001931,3.924e-05,174.43,174.42,5.7314]
[1740099002332,10.54557651,174.52,174.51,5.7284]
[1740099002531,10.54557651,174.52,174.43,1.7361]
[1740099002923,23.52392185,174.55,174.43,1.7361]
[1740099003128,23.52392185,174.55,174.44,3.5575]
[1740099003322,5.7275,174.54,174.51,5.7282]
[1740099003528,0.04289836,174.51,174.48,0.03980008]
[1740099004032,5.77159836,174.51,174.48,5.76920008]
[1740099004226,0.04289836,174.51,174.48,0.03980008]
[1740099004822,0.04289836,174.51,174.39,1.71]
[1740099004823,15.96392185,174.49,174.39,1.71]
[1740099005828,15.96392185,174.49,174.45,5.7301]
[1740099006133,0.04293423,174.46,174.45,5.7301]
[1740099007928,0.04293423,174.46,174.43,5.7308]
[1740099008128,0.04293423,174.46,174.39,1.71]
[1740099009337,0.04293423,174.46,174.45,5.7304]
[1740099009826,0.04293423,174.46,174.39,1.71]
[1740099010339,5.77303423,174.46,174.39,1.71]
[1740099010633,16.00685608,174.46,174.39,1.71]
[1740099010835,0.04293423,174.46,174.39,1.71]
[1740099011535,0.04293423,174.46,174.43,5.731]
[1740099012131,5.77323423,174.46,174.43,5.731]
[1740099012332,0.04293423,174.46,174.39,1.71]
[1740099013136,0.04293423,174.46,174.44,5.7305]
[1740099013737,5.77303423,174.46,174.44,5.7305]
[1740099014638,5.77303423,174.46,174.39,1.71]
[1740099014938,5.77303423,174.46,174.43,5.7309]
[1740099015737,0.04293423,174.46,174.43,5.7309]
[1740099015948,5.7305,174.45,174.43,5.7309]
[1740099017940,15.96392185,174.45,174.4,5.7319]
[1740099018236,15.96392185,174.45,174.34,1.7889]
[1740099018637,0.03962578,174.41,174.34,1.7889]
[1740099018939,0.03962578,174.41,174.33,4.05499884]
[1740099019839,0.03962578,174.41,174.33,0.56499884]
[1740099020338,0.03962578,174.41,174.39,5.7321]
[1740099020736,10.23317536,174.4,174.39,5.7321]
[1740099022635,16.02907883,174.41,174.39,5.7321]
[1740099024041,16.02907883,174.41,174.33,0.56499884]
[1740099024239,16.02907883,174.41,174.4,5.7321]
[1740099024435,16.02907883,174.41,174.33,0.56499884]
[1740099025239,0.03962578,174.41,174.34,1.8253]
[1740099025439,0.03962578,174.41,174.4,5.7321]
[1740099028645,0.03962578,174.41,174.36,1.7066]
[1740099029243,0.03962578,174.41,174.34,1.8253]
[1740099029443,16.02907883,174.41,174.29,19.42795305]
[1740099029743,15.98945305,174.41,174.29,19.42795305]
[1740099029940,0.0402659,174.37,174.29,19.42795305]
[1740099030346,0.0402659,174.37,174.36,5.7334]
[1740099031851,0.0402659,174.37,174.29,19.42795305]
[1740099033054,0.0402659,174.37,174.29,3.4385]
[1740099033753,21.72315305,174.35,174.32,5.7345]
[1740099034254,15.98945305,174.35,174.32,5.7345]
[1740099034555,15.98945305,174.35,174.29,3.4385]
[1740099035156,15.98945305,174.35,174.34,5.734]
[1740099037257,16.02971895,174.37,174.29,3.4385]
[1740099037451,16.02971895,174.37,174.36,5.7334]
[1740099038555,16.02971895,174.37,174.35,5.7336]
[1740099039953,16.02971895,174.37,174.33,5.7342]
[1740099040560,5.7336,174.36,174.33,5.7342]
[1740099041260,5.7334,174.36,174.33,5.7342]
[1740099041759,16.02971895,174.37,174.29,1.7066]
[1740099042355,5.7334,174.36,174.34,5.734]
[1740099042555,10.23786123,174.35,174.34,5.734]
[1740099043559,10.23786123,174.35,174.31,5.7348]
[1740099043760,5.7348,174.32,174.27,10.23786123]
[1740099043960,10.23786123,174.31,174.24,10.23786123]
[1740099044264,10.23786123,174.27,174.22,2.40672147]
[1740099044663,0.03736578,174.26,174.25,5.7368]
[1740099045053,0.03736578,174.26,174.22,1.8638]
[1740099045258,10.23786123,174.25,174.24,5.737]
[1740099045759,10.23786123,174.25,174.21,5.7381]
[1740099045964,10.23786123,174.23,174.19,31.82109996]
[1740099046462,10.23786123,174.23,174.22,5.738]
[1740099046663,0.03736578,174.26,174.16,1.8532]
[1740099046664,16.05333012,174.26,174.16,1.8532]
[1740099046858,16.01596434,174.26,174.16,1.8532]
[1740099047060,0.03625993,174.23,174.16,1.8532]
[1740099047255,0.03625993,174.23,174.13,23.97123933]
[1740099047462,0.03625993,174.23,174.22,5.738]
[1740099049663,16.05222427,174.23,174.14,5.3079]
[1740099049864,16.01596434,174.2,174.07,1.7866]
[1740099050064,16.01596434,174.23,174.12,16.01596434]
[1740099050362,2.32e-06,174.15,174.13,1.8235]
[1740099050664,16.01596434,174.23,174.13,1.8235]
[1740099050860,16.01596434,174.23,174.14,3.6316]
[1740099051065,16.01596434,174.26,174.15,16.01596434]
[1740099051466,0.04357142,174.22,174.19,0.04126255]
[1740099051863,16.01596434,174.29,174.19,0.04126255]
[1740099052165,16.01596434,174.32,174.29,5.7357]
[1740099052364,16.01596434,174.32,174.21,16.01596434]
[1740099052563,16.01596434,174.32,174.28,5.7358]
[1740099052759,16.01596434,174.32,174.22,1.7858]
[1740099053165,16.01596434,174.32,174.24,0.03836938]
[1740099053467,0.03819237,174.28,174.24,0.03836938]
[1740099053665,0.03819237,174.28,174.27,5.7363]
[1740099054970,0.03819237,174.28,174.24,0.03836938]
[1740099056769,0.03819237,174.28,174.27,5.7363]
[1740099057170,9.237e-05,174.28,174.27,5.7363]
[1740099060873,9.237e-05,174.28,174.25,5.7369]
[1740099061071,9.237e-05,174.28,174.24,0.03836938]
[1740099062077,9.237e-05,174.28,174.27,5.7363]
[1740099080994,9.237e-05,174.28,174.25,5.7367]
[1740099082296,9.237e-05,174.28,174.26,5.7366]
[1740099083997,9.237e-05,174.28,174.24,0.03836938]
[1740099084788,5.7364,174.27,174.24,5.77566938]
[1740099085399,21.75236434,174.27,174.24,5.77566938]
[1740099087199,16.01596434,174.27,174.25,5.7369]
[1740099088999,21.75236434,174.27,174.25,5.7369]
[1740099090700,21.75236434,174.27,174.24,5.77556938]
[1740099091000,16.01596434,174.27,174.24,0.03836938]
[1740099091199,16.01596434,174.27,174.26,5.7367]
[1740099093996,16.01596434,174.27,174.25,5.7368]
[1740099094303,16.01596434,174.27,174.24,0.03836938]
[1740099094497,5.737,174.25,174.24,0.03836938]
[1740099094690,15.9878526,174.25,174.24,0.03836938]
[1740099095100,10.2508526,174.25,174.16,38.28054865]
[1740099095399,10.2508526,174.21,174.16,38.28054865]
[1740099095598,10.2508526,174.19,174.12,37.75527757]
[1740099096307,0.04351828,174.18,174.16,5.74]
[1740099096899,5.78301828,174.18,174.14,0.04082762]
[1740099097100,0.04351828,174.18,174.14,0.04082762]
[1740099097903,16.0693433,174.18,174.14,0.04082762]
[1740099099307,16.0693433,174.18,174.14,5.78112762]
[1740099099609,16.0693433,174.18,174.14,0.04082762]
[1740099100507,16.0693433,174.18,174.17,5.7396]
[1740099103611,16.0693433,174.18,174.15,5.7402]
[1740099104319,16.0693433,174.18,174.16,5.7397]
[1740099104517,16.0693433,174.18,174.14,0.04082762]
[1740099105317,16.0693433,174.18,174.16,5.7396]
[1740099106213,16.0693433,174.18,174.14,0.04082762]
[1740099106819,16.0693433,174.18,174.16,5.7399]
[1740099107721,16.0693433,174.18,174.15,5.7402]
[1740099108121,21.8088433,174.18,174.15,5.7402]
[1740099108316,16.0693433,174.18,174.15,5.7402]
[1740099108519,16.0693433,174.18,174.14,0.04082762]
[1740099108721,5.7398,174.17,174.14,0.04082762]
[1740099109021,16.0693433,174.18,174.14,0.04082762]
[1740099109619,5.7399,174.17,174.14,5.78142762]
[1740099110424,16.0693433,174.18,174.17,5.7396]
[1740099110917,0.04351828,174.18,174.17,5.7396]
[1740099112918,0.04351828,174.18,174.14,0.04082762]
[1740099113116,0.04351828,174.18,174.15,5.7401]
[1740099113623,5.78311828,174.18,174.15,5.7401]
[1740099114921,0.04351828,174.18,174.17,5.7396]
[1740099115127,1.828e-05,174.18,174.17,5.7396]
[1740099123831,16.02582502,174.29,174.27,5.7361]
[1740099125931,16.02582502,174.29,174.26,0.03932302]
[1740099126636,10.24937891,174.27,174.26,0.03932302]
[1740099127537,15.98567891,174.27,174.26,0.03932302]
[1740099127835,10.24937891,174.27,174.26,0.03932302]
[1740099128536,10.24937891,174.27,174.26,5.77602302]
[1740099128737,16.01257214,174.28,174.26,5.77602302]
[1740099129743,16.01257214,174.28,174.27,5.7363]
[1740099133439,0.03735278,174.3,174.29,5.7357]
[1740099135444,5.278e-05,174.3,174.29,5.7357]
[1740099143639,5.278e-05,174.3,174.26,0.03932302]
[1740099143941,16.01257214,174.28,174.26,0.03932302]
[1740099145751,16.01257214,174.28,174.26,5.77592302]
[1740099145947,16.01257214,174.28,174.26,0.03932302]
[1740099146252,5.278e-05,174.3,174.29,5.7357]
[1740099148652,5.278e-05,174.3,174.28,5.7359]
[1740099149057,5.278e-05,174.3,174.29,5.7357]
[1740099154752,5.278e-05,174.3,174.26,0.03932302]
[1740099154753,5.278e-05,174.3,174.28,5.7359]
[1740099154953,5.278e-05,174.3,174.26,0.03932302]
[1740099155158,16.01257214,174.27,174.26,0.03932302]
[1740099155763,16.01257214,174.27,174.18,1.8067]
[1740099155957,16.01257214,174.24,174.18,1.8067]
[1740099156159,5.7377,174.23,174.2,5.7384]
[1740099156558,16.01257214,174.24,174.17,1.7925]
[1740099156961,0.04345412,174.22,174.19,0.03617109]
[1740099157261,0.04345412,174.22,174.21,5.7383]
[1740099157759,0.04345412,174.22,174.19,0.03617109]
[1740099157760,0.04345412,174.22,174.2,5.7383]
[1740099158157,0.04345412,174.22,174.19,0.03617109]
[1740099158463,0.04345412,174.22,174.21,5.7383]
[1740099159861,0.04345412,174.22,174.19,5.77487109]
[1740099160661,5.78165412,174.22,174.19,5.77487109]
[1740099162061,0.04345412,174.22,174.19,0.03617109]
[1740099162769,0.04345412,174.22,174.21,5.7383]
[1740099165773,193.34627874,174.49,174.26,11.4734]
[1740099165965,33.878669,174.44,174.36,16.01257214]
[1740099166270,33.878669,174.44,174.41,5.7317]
[1740099166873,0.03987994,174.43,174.41,5.7317]
[1740099167271,0.03987994,174.43,174.4,0.03890364]
[1740099167471,0.03987994,174.43,174.4,5.77090364]
[1740099168573,0.03987994,174.43,174.41,5.7316]
[1740099169172,0.03987994,174.43,174.4,0.03890364]
[1740099169970,0.03987994,174.43,174.42,5.7314]
[1740099171473,7.994e-05,174.43,174.42,21.74397214]
[1740099196595,7.994e-05,174.43,174.42,15.95255229]
[1740099199787,7.994e-05,174.43,174.4,10.26005593]
[1740099200591,7.994e-05,174.43,174.42,5.7314]
[1740099203801,7.994e-05,174.43,174.42,15.95255229]
[1740099212305,3.4799,174.53,174.43,11.4622]
[1740099212606,3.4799,174.53,174.48,10.22115229]
[1740099213407,0.03873865,174.52,174.49,0.0370353]
[1740099214204,0.03873865,174.52,174.51,5.7283]
[1740099215409,0.03873865,174.52,174.5,5.7285]
[1740099216407,0.03873865,174.52,174.49,0.0370353]
[1740099216600,0.03873865,174.52,174.51,5.7284]
[1740099216801,0.03873865,174.52,174.49,0.0370353]
[1740099217307,0.03873865,174.52,174.5,5.7286]
[1740099217710,0.03873865,174.52,174.49,0.0370353]
[1740099217912,0.03873865,174.52,174.51,5.7284]
[1740099220211,0.03873865,174.52,174.5,5.7286]
[1740099222512,5.76693865,174.52,174.5,5.7286]
[1740099223415,0.03873865,174.52,174.5,5.7286]
[1740099226317,0.03873865,174.52,174.49,0.0370353]
[1740099226514,10.22115229,174.51,174.49,5.7660353]
[1740099227417,15.94965229,174.51,174.49,5.7660353]
[1740099227617,15.94965229,174.51,174.49,0.0370353]
[1740099228118,10.22115229,174.51,174.49,5.7658353]
[1740099228312,10.22115229,174.51,174.49,0.0370353]
[1740099229217,10.22115229,174.51,174.49,5.7659353]
[1740099229416,5.76713865,174.52,174.49,5.7659353]
[1740099229612,0.03873865,174.52,174.49,0.0370353]
[1740099230212,0.03873865,174.52,174.5,5.7285]
[1740099232828,5.76693865,174.52,174.5,5.7285]
[1740099233120,0.03873865,174.52,174.5,5.7285]
[1740099233825,0.03873865,174.52,174.49,0.0370353]
[1740099234019,0.03873865,174.52,174.5,5.7288]
[1740099234214,0.03873865,174.52,174.49,0.0370353]
[1740099235524,0.03873865,174.52,174.5,5.7288]
[1740099235821,0.03873865,174.52,174.49,0.0370353]
[1740099236024,0.03873865,174.52,174.5,10.22115229]
[1740099237324,0.03873865,174.52,174.51,5.7284]
[1740099238424,14.59015729,174.62,174.5,10.22115229]
[1740099238625,15.94545229,174.64,174.57,10.22115229]
[1740099238824,10.22115229,174.64,174.57,10.22115229]
[1740099239225,10.22115229,174.58,174.51,10.22115229]
[1740099239626,0.04210214,174.56,174.53,0.04216215]
[1740099239828,0.04210214,174.56,174.53,10.26331444]
[1740099240027,2.14e-06,174.56,174.55,10.22115229]
[1740099240222,2.14e-06,174.56,174.55,15.94825229]
[1740099244732,10.22115443,174.56,174.53,0.04216215]
[1740099244940,10.22115229,174.54,174.53,0.04216215]
[1740099245437,10.22115229,174.54,174.47,66.57191387]
[1740099245737,10.22115229,174.51,174.47,66.57191387]
[1740099246039,5.7294,174.48,174.41,73.86335222]
[1740099246337,10.22115229,174.47,174.41,73.86335222]
[1740099246538,10.26270974,174.47,174.44,5.7307]
[1740099247634,10.26270974,174.47,174.45,5.7304]
[1740099248139,10.26270974,174.47,174.43,0.03775164]
[1740099248339,10.26270974,174.47,174.46,5.7301]
[1740099250844,0.04155745,174.47,174.46,5.7301]
[1740099253246,0.04155745,174.47,174.43,0.03775164]
[1740099254146,0.04155745,174.47,174.45,5.7304]
[1740099255343,0.04155745,174.47,174.46,5.7301]
[1740099259450,0.04155745,174.47,174.43,0.03775164]
[1740099259948,16.0087038,174.47,174.43,0.03775164]
[1740099260150,5.7307,174.44,174.43,0.03775164]
[1740099263450,5.7324,174.39,174.32,15.96714635]
[1740099263653,15.96714635,174.44,174.32,15.96714635]
[1740099263853,15.96714635,174.41,174.29,15.96714635]
[1740099264345,15.96714635,174.38,174.28,3.6466]
[1740099264551,0.03839637,174.37,174.33,0.04334048]